Cogmind - Beta 16.1 @@@ ROGUE MODE // 2026.02.26 @ 14:17:32 Player: alice_fexa Result: Destroyed by S-27 Virus with Autogun Performance ------------- Evolutions (5) 2500 Regions Visited (19) 3800 Robots Destroyed (390) 1950 Value Destroyed (15399) 15399 Prototype IDs (16) 320 Alien Tech Used (0) 0 Bonus (9019) 9019 TOTAL SCORE: 32988 Bonus ------- High Alert Combat Kills 4126 Follower Combat Kills 404 Entered Garrisons 1000 Used RIF Installer 3500 Friendly Fire -11 Cogmind --------- Core Integrity 0/1000 Matter 12/300 Energy 100/100 System Corruption 6% Temperature Cool (0) Movement Core (1350) Ox26 Location -5/Factory Parts ------- > --- POWER (2) -------- (None) > --- PROPULSION (4) --- (None) > --- UTILITY (7) ------ Huge Storage Unit Core Analyzer Relay Coupler [NC] (30) > --- WEAPON (4) ------- (None) > --- INVENTORY (25) --- Medium Treads Improved Cooling System Improved Matter Compressor (300) Phase Shifter Improved Light Armor Plating Medium Reflective Plating Damper Plating Graphene Brace Improved Force Field Relay Coupler [Proto] (9) High-powered Tractor Beam Long-range Tractor Beam Proton Cannon Neutron Cannon Gamma Bomb Array Heavy Missile Launcher Scatter Rocket Array Advanced Remote Datajack Powered Hammer Peak State ------------ > --- POWER ------------ Light Fission Core Antimatter Reactor > --- PROPULSION ------- Improved Heavy Siege Treads Compact Wheel Compact Wheel > --- UTILITY ---------- Huge Storage Unit Advanced Targeting Computer Core Analyzer Advanced Transmission Jammer Advanced Force Field Relay Coupler [NC] Relay Coupler [Heavy] > --- WEAPON ----------- Gauss Rifle Improved Heavy Machine Gun Linear Accelerator Advanced Remote Datajack > --- INVENTORY -------- Medium Treads Improved Cooling System Improved Matter Compressor Phase Shifter Improved Light Armor Plating Medium Reflective Plating Damper Plating Graphene Brace Improved Force Field Relay Coupler [Proto] High-powered Tractor Beam Long-range Tractor Beam Proton Cannon Neutron Cannon KE Penetrator 8R-AWN's Boregun 8R-AWN's Boregun Gamma Bomb Array Heavy Missile Launcher Scatter Rocket Array Powered Hammer [Rating: 100] Favorites ----------- Power Antimatter Reactor Engine Improved Ion Engine Power Core Light Fission Core Reactor Antimatter Reactor Propulsion Light Treads Treads Light Treads Leg Carbon-fiber Leg Wheel Armored Wheel Utility Huge Storage Unit Device Improved Heat Sink Storage Huge Storage Unit Processor Advanced Targeting Computer Hackware Relay Coupler [NC] Protection Hardened Light Armor Plating Weapon Advanced Beam Rifle Energy Gun Advanced Beam Rifle Energy Cannon Light EM Pulse Cannon Ballistic Gun Flak Gun Ballistic Cannon Linear Accelerator Launcher Mini Grenade Launcher Special Weapon Advanced Remote Datajack Impact Weapon Powered Hammer Special Melee Weapon Advanced Datajack Build | -11 -10 -10 -9 -9 -9 -8 -8 -8 -8 -8 -7 -7 -7 -7 -6 -6 -6 -6 -5 ------- Run | Yrd Mat Min Mat Min Exi Min Mat Gar Mat Gar Fac Was Fac Gar Fac Gar Fac Gar Fac Slots Evolved 10 | . . . 2 . . . 2 . . . 2 . . . 2 . . . 2 Power 1 | . . . . . . . . . . . . . . . . . . . 1 Propulsion 2 | . . . 1 . . . . . . . 1 . . . . . . . . Utility 5 | . . . 1 . . . 1 . . . 1 . . . 1 . . . 1 Weapon 2 | . . . . . . . 1 . . . . . . . 1 . . . . Parts Attached 200 | 7 9 3 22 . 9 2 30 8 3 18 2 12 1 6 24 22 4 5 13 Power 19 | 1 2 . 2 . 1 . 4 . . 2 . 2 . . 2 2 1 . . Engine 12 | 1 1 . 2 . 1 . 4 . . 2 . . . . . 1 . . . Core 2 | . 1 . . . . . . . . . . . . . . . 1 . . Reactor 5 | . . . . . . . . . . . . 2 . . 2 1 . . . Propulsion 44 | 2 1 1 8 . . 2 8 2 2 7 1 3 . . . 2 1 2 2 Treads 36 | 2 . . 7 . . 1 8 2 2 7 1 3 . . . 2 1 . . Leg 2 | . . . . . . . . . . . . . . . . . . 2 . Wheel 6 | . 1 1 1 . . 1 . . . . . . . . . . . . 2 Hover . | . . . . . . . . . . . . . . . . . . . . Flight . | . . . . . . . . . . . . . . . . . . . . Utility 64 | 2 3 2 3 . 2 . 7 3 . 6 1 5 1 3 11 10 . 1 4 Device 31 | 1 2 2 1 . 1 . 2 1 . 4 1 1 . 2 6 4 . 1 2 Storage 5 | 1 1 . . . . . 1 . . . . . . . . 1 . . 1 Processor 7 | . . . . . . . 1 1 . . . . 1 1 1 2 . . . Hackware 4 | . . . . . . . . . . . . 1 . . 1 1 . . 1 Protection 17 | . . . 2 . 1 . 3 1 . 2 . 3 . . 3 2 . . . Artifact . | . . . . . . . . . . . . . . . . . . . . Weapon 73 | 2 3 . 9 . 6 . 11 3 1 3 . 2 . 3 11 8 2 2 7 Energy Gun 16 | 2 1 . 5 . . . 4 . . . . . . 1 . 2 . . 1 Energy Cannon 3 | . . . . . 1 . . . . . . . . . . 1 . . 1 Ballistic Gun 31 | . . . 2 . 2 . 3 2 1 2 . 1 . 2 8 3 . 2 3 Ballistic Cannon 4 | . . . . . 2 . . . . . . . . . . 1 1 . . Launcher 11 | . 2 . 1 . 1 . 3 . . 1 . . . . 2 . . . 1 Special Weapon 3 | . . . . . . . . . . . . . . . . 1 1 . 1 Impact Weapon 2 | . . . . . . . 1 1 . . . . . . . . . . . Slashing Weapon . | . . . . . . . . . . . . . . . . . . . . Piercing Weapon . | . . . . . . . . . . . . . . . . . . . . Special Melee Weapon 3 | . . . 1 . . . . . . . . 1 . . 1 . . . . Unidentified Prototypes 16 | . . 2 3 . 2 . 3 . . . . . . . 2 . . . 4 Corrupted Parts 1 | . . . . . . . . . . . . . . . . . . . 1 System Corruption 5 | . . . . . . . . . . . . . . . . . . . 5 Parts Lost 49 | . . . . . . . 2 2 2 6 . . 1 3 5 5 2 5 16 Power 6 | . . . . . . . . . . 1 . . . . 2 1 . . 2 Propulsion 11 | . . . . . . . 1 1 . 1 . . . . . 2 1 2 3 Utility 14 | . . . . . . . 1 . . 2 . . 1 1 2 1 . 2 4 Weapon 18 | . . . . . . . . 1 2 2 . . . 2 1 1 1 1 7 Highest Loss Streak 16 | . . . . . . . 2 1 2 2 . . 1 1 3 3 1 2 16 To Critical Strikes . | . . . . . . . . . . . . . . . . . . . . Average Backups 22 | 1 16 25 24 25 24 23 23 23 23 23 23 22 19 18 19 21 20 21 21 Power 1 | . 2 2 2 2 2 2 2 2 2 2 2 2 2 2 1 . . 1 . Propulsion 2 | . 1 4 3 4 4 4 3 2 3 4 4 3 2 2 2 . . . . Utility 7 | . 5 9 7 7 6 6 5 7 7 7 8 8 7 6 7 9 10 9 10 Weapon 9 | . 6 10 12 12 11 11 12 10 10 8 8 8 7 7 7 9 8 9 8 Tool/Special . | . . . . . . . . . . . . . . . . . . . . Unused Backups 75 | . 4 1 17 . 5 . 9 . 4 2 . 8 . . 8 4 . . 13 Power 11 | . 1 . 2 . 4 . 1 . . 1 . 2 . . . . . . . Propulsion 14 | . . . 2 . . . 2 . 4 . . 4 . . 1 . . . 1 Utility 17 | . 1 1 2 . . . 1 . . . . 1 . . 2 . . . 9 Weapon 32 | . 2 . 11 . 1 . 5 . . 1 . 1 . . 5 3 . . 3 Tool/Special 1 | . . . . . . . . . . . . . . . . 1 . . . Average Slot Usage (%) 93 | . 100 100 99 100 100 99 98 100 100 99 96 80 81 83 85 85 79 80 85 Engine 6 | . 7 14 11 11 11 11 9 9 9 8 7 3 . . . . . . . Reactor 1 | . . . . . . . . . . . . 3 7 7 6 6 . . 4 Treads 20 | . 19 14 22 33 33 32 22 27 27 27 30 20 15 15 13 12 12 6 4 Wheel 2 | . 8 14 10 . . . 4 . . . . . . . . . . . 6 Device 11 | . 14 14 10 11 10 11 11 9 9 9 11 5 15 16 13 12 13 11 13 Storage 8 | . 14 14 11 11 11 11 9 9 9 9 7 7 7 7 6 6 6 6 5 Processor 5 | . . . . . . . 5 9 9 9 7 2 . 5 7 13 13 13 10 Hackware 1 | . . . . . . . . . . . . 2 . . 4 1 6 6 5 Protection 7 | . . . 10 11 11 11 8 9 9 9 7 8 12 7 5 5 . . . Energy Gun 8 | . 27 28 20 22 11 22 12 . . . . . . 2 . 1 . . . Ballistic Gun 13 | . . . . . 2 . 13 24 26 23 15 20 23 17 25 22 7 10 16 Ballistic Cannon 1 | . . . . . 4 . . . . . . . . . . . 10 10 4 Peak Build Rating 100 | 7 15 19 29 25 34 34 42 43 48 48 45 89 81 77 88 97 97 97 100 Average Rating 49 | 5 11 13 22 25 26 32 37 40 45 39 43 71 70 70 82 83 94 84 85 On Entrance 47 | . 7 13 14 25 25 32 34 39 43 48 38 45 81 68 72 86 94 97 79 Avg Prop Armor Cover (%) 13 | . 14 13 15 . . 16 14 . . . . . . . . . . 4 10 Naked Turns . | . . . . . . . . . . . . . . . . . . . . Heaviest Build 156 | 11 90 91 99 97 107 93 110 109 107 113 114 156 124 120 126 149 149 149 146 Greatest Support 145 | 40 40 16 60 60 60 63 65 63 65 64 92 140 140 140 140 140 145 145 75 Greatest Overweight (x) 26 | . 5 9 9 1 1 7 8 1 1 1 1 1 . . . 1 1 1 26 Average Overweight (x) 2 | . 3 5 7 1 1 1 3 1 1 1 1 . . . . . . . 3 Largest Inventory Capacity 25 | 8 25 25 25 25 25 25 25 25 25 25 25 25 25 25 25 25 25 25 25 Average Capacity 24 | 6 17 25 25 25 25 25 25 25 25 25 25 25 25 25 25 25 25 25 25 Most Carried 25 | 3 25 25 25 25 25 25 25 25 25 25 24 25 25 25 25 25 25 25 25 Average Carried 24 | 2 16 25 24 25 24 24 24 24 24 24 24 24 25 24 24 24 24 24 24 Final Capacity 25 | 8 25 25 25 25 25 25 25 25 25 25 25 25 25 25 25 25 25 25 25 Final Carried 25 | 3 25 25 25 25 25 25 25 24 25 25 24 25 25 25 25 24 24 24 22 Class Distribution -------------------- 30% | Scavenger-Tank 25% | Scavenger-Mutant 15% | Mutant 14% | Gunner 10% | Scavenger-Gunner 3% | Tank Dominant Class ---------------- Mutant | -10/Materials Mutant | -10/Mines Scavenger-Mutant | -9/Materials Scavenger-Mutant | -9/Mines Scavenger-Mutant | -9/Exiles Scavenger-Mutant | -8/Mines Gunner | -8/Materials Gunner | -8/Garrison Gunner | -8/Materials Scavenger-Gunner | -8/Garrison Scavenger-Mutant | -7/Factory Scavenger-Tank | -7/Waste Scavenger-Tank | -7/Factory Scavenger-Tank | -7/Garrison Scavenger-Tank | -6/Factory Scavenger-Tank | -6/Garrison Tank | -6/Factory Gunner | -6/Garrison Scavenger-Tank | -5/Factory Resources | -11 -10 -10 -9 -9 -9 -8 -8 -8 -8 -8 -7 -7 -7 -7 -6 -6 -6 -6 -5 ----------- Run | Yrd Mat Min Mat Min Exi Min Mat Gar Mat Gar Fac Was Fac Gar Fac Gar Fac Gar Fac Matter Collected 12134 | 270 390 30 360 . 335 45 1250 613 528 815 . 778 139 659 1691 1568 473 771 1419 Remotely 1870 | 137 . . . . . . 32 . . . . 30 139 653 . 72 285 243 279 Salvage Created 17868 | 52 631 39 1512 . 382 363 2531 699 817 1151 . 1842 139 487 2814 1540 392 609 1868 Parts 846 | 1 41 4 86 . 29 10 132 37 57 77 . 53 3 10 127 59 8 36 76 Haulers Intercepted 17 | . 1 . 5 . . . 4 . 1 . . . . . 3 . . . 3 Recyclers Shooed 11 | . 2 . . . . 1 1 . . . . . . . 3 . 1 . 3 Parts Field Recycled . | . . . . . . . . . . . . . . . . . . . . Retrieved Matter . | . . . . . . . . . . . . . . . . . . . . Parts Self-Destructed . | . . . . . . . . . . . . . . . . . . . . Prevented . | . . . . . . . . . . . . . . . . . . . . Parts Restored . | . . . . . . . . . . . . . . . . . . . . Kills | -11 -10 -10 -9 -9 -9 -8 -8 -8 -8 -8 -7 -7 -7 -7 -6 -6 -6 -6 -5 ------- Run | Yrd Mat Min Mat Min Exi Min Mat Gar Mat Gar Fac Was Fac Gar Fac Gar Fac Gar Fac Combat Hostiles Destroyed 281 | . 13 . 28 . 5 3 46 17 13 29 . 6 3 6 30 37 7 21 17 Guns 208 | . 7 . 22 . 1 3 43 12 10 25 . 6 3 5 22 33 2 4 10 Cannons 19 | . . . . . . . . . . . . . . . . . 5 9 5 AOE 50 | . 6 . 6 . 4 . 3 4 3 4 . . . . 6 4 . 8 2 Classes Destroyed 24 | 1 5 1 4 . 3 1 2 2 . 2 . 1 . . 1 1 . . . Worker 22 | . . . 2 . . . 7 . . . . . . . 10 . . . 3 Builder 12 | . 2 . 1 . . . 1 . 1 . . . . . 6 . . . 1 Tunneler 4 | . . 2 . . . . . . . . . . . . 1 . . . 1 Hauler 17 | . 1 . 5 . . . 4 . 1 . . . . . 3 . . . 3 Recycler 22 | 1 2 . 3 . . 3 2 . 1 . . . . . 5 . 1 . 4 Mechanic 3 | . . . . . . . 2 . 1 . . . . . . . . . . Operator 5 | . . . 2 . . . . . 1 . . . . . 2 . . . . Turret 1 | . . . . . 1 . . . . . . . . . . . . . . Watcher 17 | . 3 . 4 . . . 5 . 2 2 . . . . 1 . . . . Swarmer 61 | . 6 . 9 . . . 11 3 3 11 . . . . 3 4 . 11 . Cutter 3 | . . . . . . . . 2 . . . . . . . 1 . . . Grunt 110 | . 7 . 11 . . 2 21 6 4 7 . . 3 4 6 18 5 5 11 Brawler 12 | . . . 1 . . . 4 . . 1 . . . . 3 3 . . . Duelist 5 | . . . . . . 1 . 1 1 . . . . . 1 1 . . . Protector 2 | . . . . . . . . . . . . . . . 2 . . . . Sentry 38 | . . . 7 . . . 9 2 5 7 . . . 1 4 1 1 . 1 Specialist 6 | . . . . . . . . . . . . . . . . 4 . . 2 Hunter 17 | . . . . . . . . 3 . . . . . 1 8 2 . 1 2 Programmer 11 | . . . . . . . . . . 2 . . . . 2 2 1 3 1 Heavy 1 | . . . . . . . 1 . . . . . . . . . . . . Behemoth 4 | . . . . . . . . . . 1 . . . . 1 1 . 1 . Compactor 6 | . . . . . . . . . . . . 6 . . . . . . . Zionite 8 | . . . . . 8 . . . . . . . . . . . . . . Assembled 4 | . . . . . 4 . . . . . . . . . . . . . . Best Kill Streak 15 | 1 8 1 9 . 4 2 15 3 4 6 . 1 2 2 12 9 4 8 9 Combat Bots Only 12 | . 6 . 5 . 4 1 12 3 4 5 . 1 2 2 5 9 3 8 5 Max Kills in Single Turn 5 | 1 2 1 2 . 4 1 3 1 2 3 . 1 1 1 5 2 1 3 3 Gunslinging 1 | . . . 1 . . . 1 . . 1 . . . . 1 1 . . . Exploded 4 | . 2 . 2 . 4 . 3 1 2 3 . . . . 2 2 . 3 2 Melee . | . . . . . . . . . . . . . . . . . . . . Uniques/NPCs Destroyed 4 | . . . . . 4 . . . . . . . . . . . . . . EX-DEC (-9/Exiles) EX-BIN (-9/Exiles) EX-HEX (-9/Exiles) 8R-AWN (-9/Exiles) Combat | -11 -10 -10 -9 -9 -9 -8 -8 -8 -8 -8 -7 -7 -7 -7 -6 -6 -6 -6 -5 -------- Run | Yrd Mat Min Mat Min Exi Min Mat Gar Mat Gar Fac Was Fac Gar Fac Gar Fac Gar Fac Hostile Shots Fired 1357 | . 39 3 74 . 28 14 137 72 54 122 . . 19 42 196 172 34 109 242 Missed 334 | . 11 2 22 . 11 6 31 14 15 28 . . 6 13 48 29 6 20 72 Hits 1023 | . 28 1 52 . 17 8 106 58 39 94 . . 13 29 148 143 28 89 170 Melee 26 | . . . . . . 4 3 5 . . . . . 2 11 1 . . . Projectile 997 | . 28 1 52 . 17 4 103 53 39 94 . . 13 27 137 142 28 89 170 AOE 1 | . . . . . . . . . . . . . . . . 1 . . . Critical Strikes 37 | . . . 3 . . . 7 4 1 1 . . . . 8 5 3 3 2 Actively Blocked 3 | . . . . . . . . 3 . . . . . . . . . . . Part Disruptions 7 | . . . . . . . . . . . . . . . 1 6 . . . Damage Taken 16178 | . 408 8 598 . 287 195 1621 888 561 1524 . . 207 461 2579 2211 321 1514 2795 Core 2389 | . 33 . 105 . 28 36 301 31 21 142 . . 29 36 143 212 63 198 1011 Absorbed by Shields 441 | . . . . . . . . . . . . . . . . . 134 92 215 Reduced by Siege Mode 585 | . . . . . . . . . . . . . . . 125 107 17 176 160 Redirected to Shielding 49 | . . . . . . . . . . . . . 49 . . . . . . Regen/Repaired (Parts) 1027 | . 13 . 71 . . . 350 . . . . . . . 593 . . . . Core Remaining (%) 61 | 100 . 86 . . . 57 . . . 10 . . . 90 . . . 27 . Volleys Fired 895 | 3 56 2 88 . 99 17 121 40 40 61 . 44 16 50 70 78 16 36 58 Largest 4 | 2 2 2 2 . 2 2 3 3 3 3 . 2 3 3 4 4 3 4 4 Hottest 183 | 80 105 105 122 . 122 122 183 103 76 74 . 60 69 143 109 151 154 154 140 Shots Fired 2191 | 6 106 4 172 . 170 34 345 94 108 175 . 86 44 111 227 245 40 77 147 Gun 2009 | 6 100 4 168 . 150 34 342 85 104 173 . 86 44 111 215 234 18 29 106 Cannon 115 | . . . . . 18 . . . . . . . . . . 2 21 37 37 Launcher 57 | . 6 . 4 . 2 . 3 9 4 2 . . . . 12 5 . 8 2 Special 10 | . . . . . . . . . . . . . . . . 4 1 3 2 Kinetic 1496 | . . . . . 30 . 202 77 104 173 . 86 44 94 215 223 39 66 143 Thermal 595 | 6 100 4 168 . 121 34 140 . . . . . . 9 . 13 . . . Explosive 34 | . 6 . 4 . 2 . 2 2 4 2 . . . . . 4 . 8 . Electromagnetic 56 | . . . . . 17 . 1 15 . . . . . 8 12 1 . . 2 Robot Hit Streak 28 | 1 8 9 10 . 11 14 25 20 26 28 . 15 7 16 28 20 21 9 20 Robot Miss Streak 7 | 2 3 1 6 . 4 2 5 2 3 2 . 5 6 7 6 7 2 4 3 Penetration Max 2 | . . . . . . . . . 1 1 . 1 . . . . . 1 2 Secondary Targets 35 | . . . 2 . . . 9 3 3 4 . . . . 2 10 . . 2 Max Gunslinging Chain 2 | . . . 1 . . . 2 1 1 1 . . . . 1 1 . . 1 Shots Hit Robots 1479 | 3 65 3 100 . 108 24 250 63 73 132 . 63 22 62 171 169 27 46 98 Core Hits 984 | 2 35 2 56 . 40 9 130 37 33 57 . 10 8 37 216 207 13 31 61 Critical Kills 17 | . . . . . 1 . 1 . 1 1 . 6 . . . . . . 7 Critical Parts Destroyed 15 | . . . . . . . 2 1 . 1 . 2 2 1 1 . . 1 4 Critical Strikes 95 | . 1 . 7 . 8 . 13 1 1 2 . 37 2 2 1 . 1 5 14 Burn 25 | . 1 . 7 . 7 . 10 . . . . . . . . . . . . Destroy 60 | . . . . . 1 . 3 1 1 2 . 37 2 . 1 . . 1 11 Blast 7 | . . . . . . . . . . . . . . . . . 1 3 3 Corrupt 1 | . . . . . . . . . . . . . . 1 . . . . . Smash 2 | . . . . . . . . . . . . . . 1 . . . 1 . Melee Attacks 66 | . . . 1 . . . 1 6 1 14 . 6 . 29 3 3 . 2 . Impact 56 | . . . . . . . 1 6 1 14 . . . 29 . 3 . 2 . Slashing . | . . . . . . . . . . . . . . . . . . . . Piercing . | . . . . . . . . . . . . . . . . . . . . Sneak Attacks 4 | . . . 1 . . . . . . . . . . . 3 . . . . Combat Hostiles . | . . . . . . . . . . . . . . . . . . . . Follow-up Attacks . | . . . . . . . . . . . . . . . . . . . . Damage Inflicted 35978 | 32 1121 46 2192 . 1983 480 4856 1440 1456 2567 . 1293 326 1214 5675 4234 1248 2796 3019 Guns 25707 | 32 741 46 1738 . 1699 480 4743 910 1252 2213 . 1293 326 1002 3429 3414 294 431 1664 Cannons 3371 | . . . . . 16 . . . . . . . . . . . 954 1265 1136 Explosions 6451 | . 377 . 454 . 268 . 110 530 204 351 . . . . 2246 820 . 872 219 Melee 440 | . . . . . . . . . . . . . . 212 . . . 228 . Ramming 9 | . 3 . . . . . 3 . . 3 . . . . . . . . . Kinetic 22328 | . . . . . 377 . 2923 743 1252 2213 . 1293 326 824 3429 3204 1248 1696 2800 Thermal 7164 | 32 741 46 1738 . 1322 480 1820 . . . . . . 43 732 210 . . . Explosive 3577 | . 377 . 454 . 268 . 110 213 204 351 . . . . . 728 . 872 . Electromagnetic 2460 | . . . . . 16 . . 484 . . . . . 135 1514 92 . . 219 Impact 440 | . . . . . . . . . . . . . . 212 . . . 228 . Slashing . | . . . . . . . . . . . . . . . . . . . . Piercing . | . . . . . . . . . . . . . . . . . . . . Highest Corruption 30 | . . . 1 1 3 3 . . . 1 . 28 28 30 6 11 12 14 6 Average Corruption 9 | . . . 1 1 1 3 . . . 1 . 18 28 28 5 6 11 13 5 Corruption Purged . | . . . . . . . . . . . . . . . . . . . . Corruption Blocked . | . . . . . . . . . . . . . . . . . . . . Effects 329 | . . . 5 1 31 5 . . . 11 . 38 10 92 6 59 19 49 3 Message Errors 80 | . . . 2 1 8 1 . . . 2 . 5 2 24 . 19 6 9 1 Matter Fused 68 | . . . . . 5 2 . . . 2 . 8 4 14 2 17 2 12 . Heat Flow Errors 39 | . . . . . 4 1 . . . 3 . 2 . 10 . 7 2 10 . Energy Discharges 34 | . . . 1 . 3 . . . . 1 . 4 . 8 1 6 3 6 1 Parts Rejected 3 | . . . 1 . . . . . . . . 1 . . . . . 1 . Parts Fused 4 | . . . . . 1 . . . . . . 1 . 1 1 . . . . Data Loss (minor) 36 | . . . 1 . 4 . . . . 1 . 4 2 12 2 5 1 4 . Data Loss (major) 16 | . . . . . 2 1 . . . 1 . 3 . 7 . 1 . . 1 Misfires 15 | . . . . . 3 . . . . . . 2 . 6 . 1 1 2 . Alerts 11 | . . . . . 1 . . . . 1 . 2 . 4 . . 2 1 . Misdirections 3 | . . . . . . . . . . . . 2 . 1 . . . . . Weapon Failures 20 | . . . . . . . . . . . . 4 2 5 . 3 2 4 . Overload Shots . | . . . . . . . . . . . . . . . . . . . . Overflow Damage 904 | . . . 41 . . . . 30 11 32 . . . 82 91 15 83 439 80 Projectiles 386 | . . . . . . . . . . . . . . . . . 83 223 80 Explosions 247 | . . . 41 . . . . 30 11 32 . . . . 91 15 . 27 . Melee 271 | . . . . . . . . . . . . . . 82 . . . 189 . Knockbacks 20 | . . . . . . . . . . . . . . 3 . . 4 5 8 Impact 3 | . . . . . . . . . . . . . . 3 . . . . . Kinetic 17 | . . . . . . . . . . . . . . . . . 4 5 8 Secondary . | . . . . . . . . . . . . . . . . . . . . Self-Inflicted Damage 274 | . 59 . . . 35 . 1 . . . . . . . 104 30 . 45 . Shots 9 | . 2 . . . 1 . . . . . . . . . 3 1 . 2 . Rammed 3 | . 1 . . . . . 1 . . 1 . . . . . . . . . Targets Rammed 3 | . 1 . . . . . 1 . . 1 . . . . . . . . . Kicked . | . . . . . . . . . . . . . . . . . . . . Crushed . | . . . . . . . . . . . . . . . . . . . . Highest Temperature 354 | 54 255 3 198 . 273 259 45 34 4 201 . 354 . 226 20 233 209 237 129 Average Temperature 67 | 29 59 2 51 . 81 27 14 9 4 59 . 127 . 76 10 74 87 78 33 Received Heat Transfer 4304 | . 159 . 252 . . 36 630 243 279 480 . . 117 102 400 525 169 76 836 Effects 4 | . . . . . . . . . . . . 3 . . . 1 . . . Energy Bleed 1 | . . . . . . . . . . . . 1 . . . . . . . Interference 1 | . . . . . . . . . . . . . . . . 1 . . . Matter Decay 1 | . . . . . . . . . . . . 1 . . . . . . . Damage (minor) 1 | . . . . . . . . . . . . 1 . . . . . . . Siege Activations 36 | . . . . . . . . . . . . . . 2 10 14 2 5 3 Total Turns 546 | . . . . . . . . . . . . . . 63 135 161 30 109 48 Longest Duration 43 | . . . . . . . . . . . . . . 35 41 36 20 43 25 Martial Activations . | . . . . . . . . . . . . . . . . . . . . Shielding Activations . | . . . . . . . . . . . . . . . . . . . . Robots Disrupted . | . . . . . . . . . . . . . . . . . . . . Combat Hostiles . | . . . . . . . . . . . . . . . . . . . . Robots Corrupted 6 | . . . . . . . . 1 . . . . . 2 2 . . 1 . Combat Hostiles 6 | . . . . . . . . 1 . . . . . 2 2 . . 1 . Parts Fried 22 | . . . . . . . . 4 . . . . . 4 11 . . 1 2 Impact Corruptions 4 | . . . . . . . . . . . . . . 2 . . . 2 . Robots Melted 1 | . . . 1 . . . . . . . . . . . . . . . . Combat Hostiles . | . . . . . . . . . . . . . . . . . . . . Parts Melted 42 | . 2 . 10 . 19 2 7 . . . . . . 1 1 . . . . Heat Transferred 14406 | 75 1818 99 4208 . 1989 888 4107 . . . . . . 111 650 461 . . . Parts Sabotaged . | . . . . . . . . . . . . . . . . . . . . Parts Stolen . | . . . . . . . . . . . . . . . . . . . . Parts Stripped . | . . . . . . . . . . . . . . . . . . . . Power Chain Reactions 6 | . . . . . . . . . . . . . . . 6 . . . . Alert | -11 -10 -10 -9 -9 -9 -8 -8 -8 -8 -8 -7 -7 -7 -7 -6 -6 -6 -6 -5 ------- Run | Yrd Mat Min Mat Min Exi Min Mat Gar Mat Gar Fac Was Fac Gar Fac Gar Fac Gar Fac Maximum Alert Level 5 | . . . 2 1 . . 3 4 2 4 2 1 . 4 3 5 3 4 2 Low Security (%) 25 | 100 100 100 49 67 . 100 25 . . . . 92 100 10 . . . . . Level 1 12 | . . . 38 32 . . 1 . 65 27 . 7 . 31 . . . . . Level 2 23 | . . . 12 . . . 44 20 34 15 100 . . 25 37 . . 5 100 Level 3 24 | . . . . . . . 28 75 . 26 . . . 16 62 20 100 21 . Level 4 11 | . . . . . . . . 3 . 29 . . . 14 . 44 . 73 . Level 5 2 | . . . . . . . . . . . . . . . . 35 . . . High Security . | . . . . . . . . . . . . . . . . . . . . Max Security . | . . . . . . . . . . . . . . . . . . . . Peak Influence 2025 | 5 169 65 538 207 . 85 972 1107 559 1328 697 229 50 1345 1043 2025 1097 1253 688 Initial 1062 | . . . . 207 . . 29 531 539 301 697 229 . 21 705 728 1062 620 657 Average 583 | 1 38 7 187 195 . 21 468 808 392 780 679 54 22 590 733 1411 977 1115 607 Influence Increases 10944 | 5 453 75 1017 . . 130 1542 596 457 1087 . . 85 1354 1298 1367 209 703 566 Destroy 0b10 Robot/C 5580 | . 260 20 580 . . 60 920 340 260 580 . . 60 220 620 760 140 420 340 Destroy 0b10 Robot/NC 545 | 5 40 10 90 . . 15 105 . 35 10 . . . 10 155 . 5 5 60 Destroy Leader 1024 | . 48 10 160 . . 10 218 40 86 30 . . 10 20 196 40 30 50 76 Allied During Kill 84 | . . 5 3 . . . . . . . . . . 33 40 3 . . . Trap Triggered on 0b10 30 | . 10 . . . . . . . . . . . . . 20 . . . . Successful Hack 192 | . 25 . 31 . . . 19 14 30 14 . . . . 17 14 . 28 . Disable Machine 405 | . 15 . 75 . . . 15 15 15 . . . 15 15 210 . 30 . . Anti-Garrison Action 1950 | . . . . . . . . 150 . 350 . . . 1000 . 400 . 50 . Destroy Structure 504 | . 40 . 33 . . . 25 37 31 58 . . . 41 40 90 4 75 30 Partial Spotted 30 | . . . 15 . . . . . . . . . . . . . . . 15 Lose Combat Pursuer 600 | . 15 30 30 . . 45 240 . . 45 . . . 15 . 60 . 75 45 Influence Decreases 10279 | 5 453 75 485 355 177 55 799 307 1100 223 671 657 55 39 1602 383 1347 337 1154 Entered New Map 5413 | . . . . 325 177 . 46 287 568 163 631 428 . 9 640 313 963 267 596 Time Decay 3598 | 5 453 75 457 30 . 55 583 . 362 . 40 189 45 . 692 . 214 . 398 Lost Part 490 | . . . . . . . 20 20 20 60 . . 10 30 50 50 20 50 160 Lost Ally 178 | . . . 28 . . . . . . . . 40 . . 70 20 . 20 . Purge Threat 600 | . . . . . . . 150 . 150 . . . . . 150 . 150 . . Squads Dispatched 35 | . . . 3 . . . 4 . 5 . . . 1 . 11 . 3 . 8 Investigation 1 | . . . . . . . . . . . . . . . 1 . . . . Extermination 5 | . . . . . . . . . . . . . . . 3 . 1 . 1 Reinforcement 17 | . . . 3 . . . 3 . 1 . . . 1 . 3 . 1 . 5 Assault 7 | . . . . . . . 1 . 1 . . . . . 4 . 1 . . Garrison 5 | . . . . . . . . . 3 . . . . . . . . . 2 Intercept . | . . . . . . . . . . . . . . . . . . . . Searches Triggered . | . . . . . . . . . . . . . . . . . . . . Construction Impeded 3 | . . . . . . . . . 1 . . . . . 1 . . . 1 Haulers Reinforced 2 | . . . . . . . . . . . . . . . . . . . 2 Active Scanning Responses . | . . . . . . . . . . . . . . . . . . . . Cargo Convoy Interrupts 1 | . . . . . . . . . . . . . . . . . . . 1 Stealth | -11 -10 -10 -9 -9 -9 -8 -8 -8 -8 -8 -7 -7 -7 -7 -6 -6 -6 -6 -5 --------- Run | Yrd Mat Min Mat Min Exi Min Mat Gar Mat Gar Fac Was Fac Gar Fac Gar Fac Gar Fac Distress Signals 12 | . . . 2 . . . 4 . . 6 . . . . . . . . . Communications Jammed 105 | . . . . . . . . . . . . . . . 101 . . . 4 Distress Signals 101 | . . . . . . . . . . . . . . . 100 . . . 1 Times Spotted 399 | . 21 4 42 . 22 6 62 18 16 36 . 6 4 15 46 39 9 25 28 Peak Tracking Total 17 | . 4 3 5 . 9 3 17 3 3 7 . 3 3 3 6 8 4 8 5 Tactical Retreats 31 | . 1 1 2 . 6 2 7 . . 2 . . . 1 . 2 . 4 3 Traps | -11 -10 -10 -9 -9 -9 -8 -8 -8 -8 -8 -7 -7 -7 -7 -6 -6 -6 -6 -5 ------- Run | Yrd Mat Min Mat Min Exi Min Mat Gar Mat Gar Fac Was Fac Gar Fac Gar Fac Gar Fac Traps Triggered 23 | . . . 1 . . . 1 2 . 6 1 . . 1 2 4 . 1 4 Indirectly 6 | . . . . . . . 1 . . . . . . . 1 . . . 4 Trap Hack Attempts 23 | . . . . . . . . . . . . . . . 23 . . . . Triggered . | . . . . . . . . . . . . . . . . . . . . Disarmed . | . . . . . . . . . . . . . . . . . . . . Reprogrammed 6 | . 4 . . . . . . . . . . . . . 2 . . . . Reused 3 | . 1 . . . . . . . . . . . . . 2 . . . . Traps Extracted . | . . . . . . . . . . . . . . . . . . . . Installed . | . . . . . . . . . . . . . . . . . . . . Triggered 3 | . 1 . . . . . . . . . . . . . 2 . . . . Machines | -11 -10 -10 -9 -9 -9 -8 -8 -8 -8 -8 -7 -7 -7 -7 -6 -6 -6 -6 -5 ---------- Run | Yrd Mat Min Mat Min Exi Min Mat Gar Mat Gar Fac Was Fac Gar Fac Gar Fac Gar Fac Machines Disabled 55 | . 1 . 5 . 14 . 1 1 1 3 . . 1 6 14 4 2 2 . Max in Single Turn 10 | . 1 . 1 . 3 . 1 1 1 1 . . 1 1 10 1 1 1 . Garrison Relay 13 | . . . . . . . . . . 3 . . . 5 . 4 . 1 . Machines Repaired . | . . . . . . . . . . . . . . . . . . . . Machines Dismantled . | . . . . . . . . . . . . . . . . . . . . Machines Sabotaged . | . . . . . . . . . . . . . . . . . . . . Overloaded Fab Kills . | . . . . . . . . . . . . . . . . . . . . Hacking | -11 -10 -10 -9 -9 -9 -8 -8 -8 -8 -8 -7 -7 -7 -7 -6 -6 -6 -6 -5 --------- Run | Yrd Mat Min Mat Min Exi Min Mat Gar Mat Gar Fac Was Fac Gar Fac Gar Fac Gar Fac Machines Accessed 57 | . 9 1 8 . 1 . 12 1 4 2 . . 1 2 9 1 1 2 3 Terminals 33 | . 7 . 4 . . . 8 1 3 2 . . . 2 3 1 . 2 . Fabricators 4 | . . . . . . . . . . . . . . . 3 . . . 1 Repair Stations 5 | . 1 . 1 . . . 2 . . . . . . . 1 . . . . Recycling Units 5 | . 1 . 2 . . . . . . . . . . . 1 . . . 1 Scanalyzers 3 | . . . 1 . . . 1 . . . . . . . . . . . 1 Garrison Access 5 | . . . . . . . 1 . 1 . . . 1 . 1 . 1 . . Total Hacks 151 | . 24 1 19 . 1 . 49 3 16 3 . . 1 4 20 1 1 3 5 Successful 82 | . 16 1 11 . 1 . 27 1 10 1 . . 1 . 7 1 1 2 2 Failed 66 | . 8 . 7 . . . 21 2 5 2 . . . 4 13 . . 1 3 Catastrophic 11 | . . . 1 . . . 1 1 . . . . . 2 4 . . . 2 Database Lockouts 3 | . . . 1 . . . 1 . 1 . . . . . . . . . . Manual 64 | . 16 . 9 . . . 18 . 12 . . . . . 9 . . . . Terminals 94 | . 21 . 13 . . . 23 3 15 3 . . . 4 8 1 . 3 . Fabricators 7 | . . . . . . . . . . . . . . . 6 . . . 1 Repair Stations 24 | . 2 . 2 . . . 17 . . . . . . . 3 . . . . Recycling Units 6 | . 1 . 2 . . . . . . . . . . . 2 . . . 1 Scanalyzers 11 | . . . 2 . . . 6 . . . . . . . . . . . 3 Garrison Access 7 | . . . . . . . 3 . 1 . . . 1 . 1 . 1 . . Terminal Hacks 25 | . 5 1 . . 1 . 5 1 6 1 . . . . 2 1 . 2 . Record 1 | . . . . . 1 . . . . . . . . . . . . . . Robot Analysis 2 | . 1 . . . . . . . 1 . . . . . . . . . . Open Door 1 | . . 1 . . . . . . . . . . . . . . . . . Emergency Access Points 3 | . . . . . . . . . . 1 . . . . . 1 . 1 . Terminal Index 2 | . . . . . . . . . 1 . . . . . 1 . . . . Alert Level 2 | . . . . . . . 2 . . . . . . . . . . . . Unreport Threat 2 | . . . . . . . 1 . 1 . . . . . . . . . . Locate Traps 7 | . 3 . . . . . 1 . 2 . . . . . 1 . . . . Reprogram Traps 1 | . 1 . . . . . . . . . . . . . . . . . . Zone Layout 2 | . . . . . . . 1 . 1 . . . . . . . . . . Garrison Registry 2 | . . . . . . . . 1 . . . . . . . . . 1 . Fabricator Hacks 2 | . . . . . . . . . . . . . . . 2 . . . . Network Status 1 | . . . . . . . . . . . . . . . 1 . . . . Build 1 | . . . . . . . . . . . . . . . 1 . . . . Repair Station Hacks 18 | . 2 . 2 . . . 14 . . . . . . . . . . . . Scan Component 9 | . 1 . 1 . . . 7 . . . . . . . . . . . . Repair 9 | . 1 . 1 . . . 7 . . . . . . . . . . . . Recycling Unit Hacks 5 | . 1 . 2 . . . . . . . . . . . 1 . . . 1 Retrieve Components 5 | . 1 . 2 . . . . . . . . . . . 1 . . . 1 Scanalyzer 5 | . . . 1 . . . 3 . . . . . . . . . . . 1 Retrieve Study 5 | . . . 1 . . . 3 . . . . . . . . . . . 1 Garrison Access Hacks 5 | . . . . . . . 1 . 1 . . . 1 . 1 . 1 . . Unlock Access 5 | . . . . . . . 1 . 1 . . . 1 . 1 . 1 . . Unauthorized Hacks 22 | . 8 . 6 . . . 4 . 3 . . . . . 1 . . . . Terminals 22 | . 8 . 6 . . . 4 . 3 . . . . . 1 . . . . Botnet 12 | . 3 . 2 . . . 4 . 2 . . . . . 1 . . . . Operators 1 | . . . . . . . . . 1 . . . . . . . . . . Skim 9 | . 5 . 4 . . . . . . . . . . . . . . . . Fabricators . | . . . . . . . . . . . . . . . . . . . . Repair Stations . | . . . . . . . . . . . . . . . . . . . . Recycling Units . | . . . . . . . . . . . . . . . . . . . . Scanalyzers . | . . . . . . . . . . . . . . . . . . . . Garrison Access . | . . . . . . . . . . . . . . . . . . . . Data Cores Recovered 1 | . . . . . . . . . 1 . . . . . . . . . . Used . | . . . . . . . . . . . . . . . . . . . . Hacking Detections 43 | . 8 . 4 . . . 9 1 4 2 . . . 2 8 . 1 1 3 Full Trace Events 3 | . . . . . . . . 1 . . . . . 1 1 . . . . Feedback Events . | . . . . . . . . . . . . . . . . . . . . Feedback Blocked . | . . . . . . . . . . . . . . . . . . . . Robot Schematics Acquired . | . . . . . . . . . . . . . . . . . . . . Robots Built . | . . . . . . . . . . . . . . . . . . . . Authchips . | . . . . . . . . . . . . . . . . . . . . Time . | . . . . . . . . . . . . . . . . . . . . Total Robot Build Rating . | . . . . . . . . . . . . . . . . . . . . Part Schematics Acquired . | . . . . . . . . . . . . . . . . . . . . Parts Built 2 | . . . . . . . . . . . . . . . 2 . . . . Authchips . | . . . . . . . . . . . . . . . . . . . . Time 117 | . . . . . . . . . . . . . . . 117 . . . . Total Part Build Rating 14 | . . . . . . . . . . . . . . . 14 . . . . Part Studies Acquired 5 | . . . 1 . . . 3 . . . . . . . . . . . 1 Parts Repaired 9 | . 1 . 1 . . . 7 . . . . . . . . . . . . Time 433 | . 26 . 32 . . . 375 . . . . . . . . . . . . Parts Recycled . | . . . . . . . . . . . . . . . . . . . . Recycled Matter . | . . . . . . . . . . . . . . . . . . . . Retrieved Matter . | . . . . . . . . . . . . . . . . . . . . Retrieved Components 34 | . 1 . 17 . . . . . . . . . . . 9 . . . 7 Parts Scanalyzed . | . . . . . . . . . . . . . . . . . . . . Part Schematics Acquired . | . . . . . . . . . . . . . . . . . . . . Parts Damaged . | . . . . . . . . . . . . . . . . . . . . Bothacking | -11 -10 -10 -9 -9 -9 -8 -8 -8 -8 -8 -7 -7 -7 -7 -6 -6 -6 -6 -5 ------------ Run | Yrd Mat Min Mat Min Exi Min Mat Gar Mat Gar Fac Was Fac Gar Fac Gar Fac Gar Fac Used RIF Installer 7 | . . . . . . . . 2 . 2 . . . 1 . 1 . 1 . Hotswap 1 | . . . . . . . . . . 1 . . . . . . . . . Code Merge 1 | . . . . . . . . . . . . . . . . 1 . . . Command Fork 1 | . . . . . . . . . . . . . . 1 . . . . . Zone Cloak 1 | . . . . . . . . . . . . . . . . . . 1 . Watcher Feeds 1 | . . . . . . . . . . 1 . . . . . . . . . Program Shield 1 | . . . . . . . . 1 . . . . . . . . . . . Robots Hacked 11 | . . . 1 . . . . . . . . 6 . . 2 . 1 . 1 Non-combat 3 | . . . . . . . . . . . . . . . 2 . 1 . . Combat 8 | . . . 1 . . . . . . . . 6 . . . . . . 1 Robot Hacks Applied 11 | . . . 1 . . . . . . . . 6 . . 2 . 1 . 1 parse_system 1 | . . . 1 . . . . . . . . . . . . . . . . purge_threat 2 | . . . . . . . . . . . . . . . 1 . 1 . . ignore_targets 6 | . . . . . . . . . . . . 6 . . . . . . . amplify_resonance 1 | . . . . . . . . . . . . . . . . . . . 1 formatsys_low 1 | . . . . . . . . . . . . . . . 1 . . . . Relay Couplers Released 55 | . . . . . . . . . . 14 . . . 21 . 17 . 3 . Machine Destruction 55 | . . . . . . . . . . 14 . . . 21 . 17 . 3 . Attached 4 | . . . . . . . . . . . . 1 . . 1 1 . . 1 Merged Code Value 13 | . . . . . . . . . . . . . . . . 13 . . . Fabnet Peak Effective % . | . . . . . . . . . . . . . . . . . . . . Robots Rewired 5 | . . . . . . . . . . . . . . 3 . 1 . 1 . Allies Hacked . | . . . . . . . . . . . . . . . . . . . . Hacks Repelled . | . . . . . . . . . . . . . . . . . . . . Allies | -11 -10 -10 -9 -9 -9 -8 -8 -8 -8 -8 -7 -7 -7 -7 -6 -6 -6 -6 -5 -------- Run | Yrd Mat Min Mat Min Exi Min Mat Gar Mat Gar Fac Was Fac Gar Fac Gar Fac Gar Fac Total Allies 13 | . . 3 . . . . . . . 1 . 1 . 5 1 1 . 1 . Largest Group 4 | . . 3 3 . . . . . . 1 1 2 . 4 4 1 . 1 . Highest-Rated Group 176 | . . 40 40 . . . . . . 20 20 51 . 176 176 148 . 148 . Highest-Rated Ally 148 | . . 16 16 . . . . . . 20 20 31 . 80 80 148 . 148 . Total Orders 4 | . . . 1 . 1 . . . . . . . . . 2 . . . . STAY 1 | . . . . . . . . . . . . . . . 1 . . . . AID 1 | . . . . . . . . . . . . . . . 1 . . . . RETURN 2 | . . . 1 . 1 . . . . . . . . . . . . . . Ally Attacks 130 | . . 12 17 . 17 . . . . . . 12 . 8 28 16 . 20 . Total Damage 3242 | . . 77 140 . 108 . . . . . . 266 . 365 975 593 . 718 . Kills 16 | . . 3 2 . . . . . . . . . . 6 4 1 . . . Allies Corrupted 2 | . . . . . . . . . . . . . . . 2 . . . . Allies Melted . | . . . . . . . . . . . . . . . . . . . . Intel | -11 -10 -10 -9 -9 -9 -8 -8 -8 -8 -8 -7 -7 -7 -7 -6 -6 -6 -6 -5 ------- Run | Yrd Mat Min Mat Min Exi Min Mat Gar Mat Gar Fac Was Fac Gar Fac Gar Fac Gar Fac Active Infowar (turns) 6106 | . . 1 . . . . . . . . 51 9 . . 2668 1583 . 943 851 Sensors 1 | . . 1 . . . . . . . . . . . . . . . . . Terrain 498 | . . . . . . . . . . . . . . . 498 . . . . Traps 60 | . . . . . . . . . . . 51 9 . . . . . . . Jamming 5549 | . . . . . . . . . . . . . . . 2172 1583 . 943 851 Robot Analysis Total 2 | . 1 . . . . . . . 1 . . . . . . . . . . Derelict Logs Recovered 3 | . . 3 . . . . . . . . . . . . . . . . . Drone Launches 5 | . . . 1 . 4 . . . . . . . . . . . . . . Drone Recoveries 4 | . . . 1 . 3 . . . . . . . . . . . . . . Exploration | -11 -10 -10 -9 -9 -9 -8 -8 -8 -8 -8 -7 -7 -7 -7 -6 -6 -6 -6 -5 ------------- Run | Yrd Mat Min Mat Min Exi Min Mat Gar Mat Gar Fac Was Fac Gar Fac Gar Fac Gar Fac Turns Passed 25318 | 75 1554 702 2400 62 3023 279 3284 1243 824 1967 86 753 136 1766 2830 1866 440 1087 941 Spaces Moved 9802 | 35 753 346 917 26 1003 89 1053 441 268 687 36 237 50 837 1357 839 163 319 346 Core 5 | 3 . . . . . . . . . . . . . . . . . . 2 Treads 7365 | 32 272 . 62 26 1003 80 577 441 268 687 36 237 50 837 1357 839 163 319 79 Legs . | . . . . . . . . . . . . . . . . . . . . Wheels 2432 | . 481 346 855 . . 9 476 . . . . . . . . . . . 265 Hover . | . . . . . . . . . . . . . . . . . . . . Flight . | . . . . . . . . . . . . . . . . . . . . Fastest Speed 50 | 50 160 175 185 240 240 185 185 240 233 230 236 155 160 160 160 160 160 170 145 Average Speed 199 | 150 169 181 207 240 240 234 215 241 237 234 236 204 160 160 160 164 216 258 192 Slowest Speed 1350 | 160 175 215 320 240 240 240 480 243 243 235 236 240 160 160 160 240 255 270 1350 Overloaded Moves . | . . . . . . . . . . . . . . . . . . . . Propulsion Burnouts . | . . . . . . . . . . . . . . . . . . . . Robots Hopped . | . . . . . . . . . . . . . . . . . . . . Potential Cave-ins . | . . . . . . . . . . . . . . . . . . . . Cave-ins Triggered . | . . . . . . . . . . . . . . . . . . . . Exploration Rate (%) 48 | 4 97 70 71 9 79 28 97 60 22 79 1 90 2 82 34 87 5 42 8 Regions Visited 19 Branch Regions 4 Pre-discovered Areas 5 | . 2 2 . . 1 . . . . . . . . . . . . . . Known Exits Taken 6 | . . . 1 . . . 1 . 1 . . . 1 . 1 . 1 . . Unknown Exits Taken 6 | 1 1 1 . 1 1 1 . . . . . . . . . . . . . Scrap Searched 1 | . . . . . . 1 . . . . . . . . . . . . . Spaces Dug 80 | . 14 . 15 . . . 22 1 10 2 . . . 11 . 5 . . . Terrain Destroyed 345 | . 35 . 31 . 12 . 22 21 35 6 . 10 . 11 35 18 4 92 13 Melee 16 | . . . . . . . 1 1 1 2 . . . 11 . . . . . Projectile 42 | . . . . . . . . . 2 3 . 10 . . . . 4 13 10 AOE 284 | . 35 . 31 . 12 . 21 20 32 1 . . . . 35 18 . 79 . Terrain Rammed . | . . . . . . . . . . . . . . . . . . . . Walls Destroyed . | . . . . . . . . . . . . . . . . . . . . Machines Disabled . | . . . . . . . . . . . . . . . . . . . . Actions | -11 -10 -10 -9 -9 -9 -8 -8 -8 -8 -8 -7 -7 -7 -7 -6 -6 -6 -6 -5 --------- Run | Yrd Mat Min Mat Min Exi Min Mat Gar Mat Gar Fac Was Fac Gar Fac Gar Fac Gar Fac Total 13871 | 48 929 416 1265 27 1453 128 1830 542 381 893 38 425 69 1122 1891 1175 211 505 523 Wait 2207 | 1 64 57 158 2 314 13 541 19 49 68 . 88 1 121 331 172 22 121 65 Move 9781 | 34 752 345 916 25 1002 88 1052 439 268 685 36 236 49 835 1356 837 163 317 346 Hop . | . . . . . . . . . . . . . . . . . . . . Pick Up 187 | 3 29 1 28 . 8 2 24 3 8 11 . 11 . 6 22 17 2 5 7 Fast Attach 110 | 7 2 4 9 . 2 1 19 2 . 3 1 6 1 3 21 11 1 3 14 Attach 57 | . . . 5 . 1 . 7 4 2 5 1 3 . 2 8 8 2 4 5 Detach 7 | . 2 . . . . . . 1 . 1 . . . 1 . . 1 . 1 Swap 195 | . 11 1 16 . 13 2 23 19 6 17 . 7 2 12 19 21 4 13 9 Drop 266 | . 12 6 44 . 13 5 41 5 7 17 . 24 . 7 38 28 . 1 18 Fire 895 | 3 56 2 88 . 99 17 121 40 40 61 . 44 16 50 70 78 16 36 58 Melee 66 | . . . 1 . . . 1 6 1 14 . 6 . 29 3 3 . 2 . Ram 1 | . . . . . . . 1 . . . . . . . . . . . . Kick . | . . . . . . . . . . . . . . . . . . . . Crush 2 | . 1 . . . . . . . . 1 . . . . . . . . . Escape Stasis 16 | . . . . . . . . 4 . 10 . . . . . . . 2 . Rewire 58 | . . . . . 1 . . . . . . . . 56 . . . 1 . Trap 23 | . . . . . . . . . . . . . . . 23 . . . . Miscellaneous . | . . . . . . . . . . . . . . . . . . . . Route ------- -11/Scrapyard -10/Materials (discovered 6 exits: *Mat x3 / *Min x2 / Sub) -10/Mines -9/Materials (discovered 4 exits: *Mat x2 / *Min x2) -9/Mines -9/Exiles -8/Mines -8/Materials (discovered 5 exits: [*Fac x3] / [*Sto] / Gar) -8/Garrison (discovered 3 exits: *Mat x3) -8/Materials (discovered 3 exits: [*Fac] / [*Sto] / Gar) -8/Garrison (discovered 3 exits: [*Fac x3]) -7/Factory -7/Waste -7/Factory -7/Garrison (discovered 3 exits: *Fac x3) -6/Factory (discovered 2 exits: [*Low] / Gar) -6/Garrison (discovered 3 exits: *Fac x3) -6/Factory -6/Garrison (discovered 3 exits: *Fac x3) -5/Factory History --------- Turn | Location | Event 12 | -11/Scrapyard | Discovered new exit (range 15) 76 | -11/Scrapyard | Entered Materials 305 | -10/Materials | Repaired Heat Sink 311 | -10/Materials | Build established: Mutant 335 | -10/Materials | Discovered new exit (range 8) 535 | -10/Materials | Discovered new exit (range 15) 854 | -10/Materials | Discovered new exit (range 16) 1201 | -10/Materials | Discovered new exit (range 14) 1333 | -10/Materials | Discovered new exit (range 10) 1422 | -10/Materials | Learned location of 1 exit from Recycling 1464 | -10/Materials | Identified exit to Subcaves 1495 | -10/Materials | Learned Storage stockpile data 1516 | -10/Materials | Learned Storage machine intel 1545 | -10/Materials | Learned location of 1 exit from Storage 1630 | -10/Materials | Entered Mines 1714 | -10/Mines | Assembled infested the area 1719 | -10/Mines | Assisted by a Guerilla fighting off Assembled 1827 | -10/Mines | Found a damaged Exp. Sensor Array with a note attached 1833 | -10/Mines | Found Prototype Device 1833 | -10/Mines | Identified Exp. Sensor Array 1888 | -10/Mines | Learned 4 Materials zone layouts 2017 | -10/Mines | Assisted by bots powering up and referring to "LRC-V3" 2128 | -10/Mines | Learned location of Zion (-7) 2143 | -10/Mines | Discovered new exit (range 13) 2212 | -10/Mines | Found the Drone Emporium 2237 | -10/Mines | Found Prototype Device 2237 | -10/Mines | Identified Thief Drone Bay 2332 | -10/Mines | Entered Materials 2332 | -9/Materials | Accompanied by 3 allies 2332 | -9/Materials | Evolved 2 slots: Propulsion x1, Utility x1 2333 | -9/Materials | Identified exit to Mines 2437 | -9/Materials | Lost 3 allies 2763 | -9/Materials | Build established: Scavenger-Mutant 2876 | -9/Materials | Discovered new exit (range 3) 3052 | -9/Materials | Discovered exit to Mines (range 15) 3075 | -9/Materials | Central database locked down 3195 | -9/Materials | Repaired Arm. Wheel+ 3663 | -9/Materials | Discovered new exit (range 16) 4127 | -9/Materials | Build established: Mutant 4732 | -9/Materials | Entered Mines 4785 | -9/Mines | Deemed a non-threat by the Exiles lab entrance 4785 | -9/Mines | Discovered new exit (range 5) 4794 | -9/Mines | Entered Exiles 4854 | -9/Exiles | Met 8R-AWN 4870 | -9/Exiles | Build established: Scavenger-Mutant 4893 | -9/Exiles | Met EX-HEX 4998 | -9/Exiles | Met EX-DEC 5619 | -9/Exiles | Attacked by the Exiles 5724 | -9/Exiles | Found 8R-AWN's Boregun 6397 | -9/Exiles | Destroyed EX-DEC 6442 | -9/Exiles | Destroyed EX-BIN 6507 | -9/Exiles | Destroyed EX-HEX 6575 | -9/Exiles | Found Deploy-a-Sentry 7666 | -9/Exiles | Destroyed 8R-AWN 7790 | -9/Exiles | Discovered new exit (range 14) 7817 | -9/Exiles | Left Exiles lab with Deploy-a-Sentry 7817 | -9/Exiles | Entered Mines 7911 | -8/Mines | Found DCF Scrap (14 items) 8002 | -8/Mines | Discovered new exit (range 5) 8096 | -8/Mines | Entered Materials 8096 | -8/Materials | Evolved 2 slots: Utility x1, Weapon x1 8112 | -8/Materials | Central database locked down 8359 | -8/Materials | Build established: Scavenger-Tank 8835 | -8/Materials | Repaired Broken Imp. Assault Rifle 8888 | -8/Materials | Discovered new exit (range 11) 9031 | -8/Materials | Destroyed 12 combat bots 9173 | -8/Materials | Build established: Tank 9357 | -8/Materials | Repaired Exp. Heat Sink 9391 | -8/Materials | Repaired Imp. Treads 9452 | -8/Materials | Repaired Adv. Beam Rifle 9514 | -8/Materials | Repaired Adv. Beam Rifle 9547 | -8/Materials | Repaired Arm. Wheel+ 9587 | -8/Materials | Repaired Imp. Light Armor Plating 9815 | -8/Materials | Build established: Gunner 9964 | -8/Materials | Discovered new exit (range 16) 10096 | -8/Materials | First assault squad dispatched 10634 | -8/Materials | Discovered new exit (range 16) 10828 | -8/Materials | Core integrity fell below 50% 11330 | -8/Materials | Discovered new exit (range 16) 11378 | -8/Materials | Identified exit to Garrison 11380 | -8/Materials | Entered Garrison 11449 | -8/Garrison | Triggered checkpoint 11693 | -8/Garrison | Triggered checkpoint 11791 | -8/Garrison | Triggered checkpoint 11880 | -8/Garrison | Discovered new exit (range 75) 11880 | -8/Garrison | Discovered new exit (range 64) 11880 | -8/Garrison | Discovered new exit (range 21) 11971 | -8/Garrison | Installed Relay Interface Framework 12140 | -8/Garrison | Triggered checkpoint 12315 | -8/Garrison | Triggered checkpoint 12573 | -8/Garrison | Expanded RIF knowledge: Program Shield 12586 | -8/Garrison | Triggered checkpoint 12615 | -8/Garrison | Identified exit to Materials 12623 | -8/Garrison | Entered Materials 12716 | -8/Materials | Central database locked down 12901 | -8/Materials | Build established: Scavenger-Gunner 13191 | -8/Materials | Discovered new exit (range 7) 13217 | -8/Materials | Build established: Gunner 13227 | -8/Materials | Garrison activated, responded to threat 13305 | -8/Materials | Discovered new exit (range 14) 13423 | -8/Materials | First assault squad dispatched 13447 | -8/Materials | Identified exit to Garrison 13447 | -8/Materials | Entered Garrison 13609 | -8/Garrison | Spotted B-75 Beast 13670 | -8/Garrison | Destroyed B-75 Beast 14147 | -8/Garrison | Triggered checkpoint 14187 | -8/Garrison | Garrison Relay disabled 14239 | -8/Garrison | Build established: Scavenger-Gunner 14259 | -8/Garrison | Core integrity fell below 20% 14431 | -8/Garrison | Triggered checkpoint 14517 | -8/Garrison | Triggered checkpoint 14561 | -8/Garrison | Garrison Relay disabled 14618 | -8/Garrison | Discovered new exit (range 10) 14824 | -8/Garrison | Garrison Relay disabled 14874 | -8/Garrison | Discovered new exit (range 15) 14905 | -8/Garrison | Expanded RIF knowledge: Watcher Feeds 15107 | -8/Garrison | Build established: Scavenger-Mutant 15219 | -8/Garrison | Expanded RIF knowledge: Hotswap 15264 | -8/Garrison | Rescued a captive Derelict 15306 | -8/Garrison | Discovered new exit (range 10) 15414 | -8/Garrison | Entered Factory 15414 | -7/Factory | Accompanied by 1 ally 15414 | -7/Factory | Evolved 2 slots: Propulsion x1, Utility x1 15500 | -7/Factory | Sucked down chute 15500 | -7/Factory | Entered Waste 15501 | -7/Waste | Met a frightened Derelict 15515 | -7/Waste | 1 allies followed down the chute 15515 | -7/Waste | EMP discharged 15566 | -7/Waste | Spotted C-40 Crusher 15568 | -7/Waste | Spotted C-40 Crusher 15583 | -7/Waste | Spotted C-40 Crusher 15606 | -7/Waste | Spotted C-40 Crusher 15615 | -7/Waste | EMP discharged 15615 | -7/Waste | System corruption reached 10% 15634 | -7/Waste | Spotted C-40 Crusher 15679 | -7/Waste | Spotted C-40 Crusher 15692 | -7/Waste | Found 8R-AWN's Boregun 15693 | -7/Waste | Destroyed C-40 Crusher 15715 | -7/Waste | EMP discharged 15743 | -7/Waste | Destroyed C-40 Crusher 15770 | -7/Waste | Destroyed C-40 Crusher 15811 | -7/Waste | Found Damper Plating 15815 | -7/Waste | EMP discharged 15835 | -7/Waste | Destroyed C-40 Crusher 15915 | -7/Waste | EMP discharged 15927 | -7/Waste | Destroyed C-40 Crusher 16015 | -7/Waste | EMP discharged 16019 | -7/Waste | Build established: Scavenger-Tank 16080 | -7/Waste | Destroyed C-40 Crusher 16115 | -7/Waste | EMP discharged 16215 | -7/Waste | EMP discharged 16229 | -7/Waste | Discovered new exit (range 16) 16253 | -7/Waste | Entered Factory 16387 | -7/Factory | Identified exit to Garrison 16389 | -7/Factory | Entered Garrison 16477 | -7/Garrison | Triggered checkpoint 16498 | -7/Garrison | Warlord forces raided the area 16580 | -7/Garrison | Garrison Relay disabled 16623 | -7/Garrison | Triggered checkpoint 16651 | -7/Garrison | Triggered checkpoint 16685 | -7/Garrison | Triggered checkpoint 16739 | -7/Garrison | Triggered checkpoint 16817 | -7/Garrison | Triggered checkpoint 16921 | -7/Garrison | Triggered checkpoint 16980 | -7/Garrison | Lost 3 allies 16989 | -7/Garrison | Found embedded Infiltrators 17009 | -7/Garrison | Triggered checkpoint 17035 | -7/Garrison | Expanded RIF knowledge: Command Fork 17056 | -7/Garrison | Discovered new exit (range 11) 17103 | -7/Garrison | Triggered checkpoint 17144 | -7/Garrison | Garrison Relay disabled 17233 | -7/Garrison | Triggered checkpoint 17343 | -7/Garrison | Discovered new exit (range 11) 17410 | -7/Garrison | Garrison Relay disabled 17725 | -7/Garrison | Build established: Scavenger-Mutant 17729 | -7/Garrison | Triggered checkpoint 17742 | -7/Garrison | System corruption reached 30% 17800 | -7/Garrison | Garrison Relay disabled 17887 | -7/Garrison | Garrison Relay disabled 17968 | -7/Garrison | Discovered new exit (range 8) 18155 | -7/Garrison | Entered Factory 18155 | -6/Factory | Accompanied by 4 allies 18155 | -6/Factory | Evolved 2 slots: Utility x1, Weapon x1 18461 | -6/Factory | Build established: Scavenger-Tank 18716 | -6/Factory | Spotted B-75 Beast 18741 | -6/Factory | Destroyed B-75 Beast 18771 | -6/Factory | Fabricated Adv. Transmission Jammer? 19347 | -6/Factory | Discovered new exit (range 15) 20255 | -6/Factory | First assault squad dispatched 20646 | -6/Factory | Found Prototype Launcher 20646 | -6/Factory | Identified Scatter Rocket Array 20656 | -6/Factory | Found Scatter Rocket Array 20754 | -6/Factory | Lost 3 parts (1p1u1w) 20910 | -6/Factory | Identified exit to Garrison 20985 | -6/Factory | Entered Garrison 21031 | -6/Garrison | Expanded RIF knowledge: Code Merge 21085 | -6/Garrison | Triggered checkpoint 21125 | -6/Garrison | Garrison Relay disabled 21247 | -6/Garrison | Destroyed 9 combat bots 21255 | -6/Garrison | Lost 3 parts (2n1u) 21347 | -6/Garrison | Triggered checkpoint 21418 | -6/Garrison | Garrison Relay disabled 21760 | -6/Garrison | Discovered new exit (range 8) 21781 | -6/Garrison | Spotted B-86 Titan 21811 | -6/Garrison | Rewired B-90 Cyclops 21829 | -6/Garrison | Allies destroyed B-86 Titan 21959 | -6/Garrison | Triggered checkpoint 22016 | -6/Garrison | Triggered checkpoint 22080 | -6/Garrison | Discovered new exit (range 15) 22093 | -6/Garrison | Spotted B-75 Beast 22136 | -6/Garrison | Destroyed B-75 Beast 22202 | -6/Garrison | Found Relay Coupler [Proto] 22289 | -6/Garrison | Garrison Relay disabled 22343 | -6/Garrison | Triggered checkpoint 22413 | -6/Garrison | Triggered checkpoint 22505 | -6/Garrison | Garrison Relay disabled 22579 | -6/Garrison | Discovered new exit (range 8) 22636 | -6/Garrison | System corruption reached 10% 22698 | -6/Garrison | Found Gamma Bomb Array 22845 | -6/Garrison | Identified exit to Factory 22851 | -6/Garrison | Entered Factory 23201 | -6/Factory | First assault squad dispatched 23291 | -6/Factory | Identified exit to Garrison 23291 | -6/Factory | Entered Garrison 23322 | -6/Garrison | Discovered new exit (range 57) 23322 | -6/Garrison | Discovered new exit (range 32) 23322 | -6/Garrison | Discovered new exit (range 73) 23344 | -6/Garrison | Core integrity fell below 50% 23428 | -6/Garrison | Triggered checkpoint 23455 | -6/Garrison | Triggered checkpoint 23481 | -6/Garrison | Destroyed 8 combat bots 23557 | -6/Garrison | Triggered checkpoint 23575 | -6/Garrison | Triggered checkpoint 23816 | -6/Garrison | Build established: Gunner 23874 | -6/Garrison | Spotted B-86 Titan 23889 | -6/Garrison | Rewired B-90 Cyclops 23921 | -6/Garrison | Destroyed B-86 Titan 23952 | -6/Garrison | Spotted B-90 Cyclops 24162 | -6/Garrison | Triggered checkpoint 24263 | -6/Garrison | Expanded RIF knowledge: Zone Cloak 24290 | -6/Garrison | Garrison Relay disabled 24378 | -6/Garrison | Entered Factory 24378 | -5/Factory | Evolved 2 slots: Power x1, Utility x1 24437 | -5/Factory | Build established: Scavenger-Gunner 24876 | -5/Factory | Build established: Scavenger-Tank 24965 | -5/Factory | Garrison activated, responded to threat 24979 | -5/Factory | Cargo convoy interrupted 25285 | -5/Factory | Core integrity fell below 50% 25285 | -5/Factory | Garrison activated, responded to threat 25308 | -5/Factory | Core integrity fell below 20% 25319 | -5/Factory | Destroyed by S-27 Virus with Autogun Last Messages --------------- 25285_ HV Slug penetrates K-01 Serf. 25285_ K-01 Serf suffers critical hit (Destroy). 25285_ K-01 Serf destroyed. 25288_ Penetrated by Slug. 25288_ 8R-AWN's Boregun destroyed. 25288_ HV Slug penetrates H-66 Slayer. 25288_ H-66 Slayer suffers critical hit (Destroy). 25288_ H-66 Slayer destroyed. 25290_ Critical hit (Burn: +37). 25290_ HV Slug penetrates G-50 Soldier. 25290_ HV Slug penetrates Wall. 25291_ Wall collapses. 25292_ HV Slug penetrates Wall. 25293_ Wall collapses. 25293_ 8R-AWN's Boregun destroyed. 25297_ S-27 Virus destroyed. 25298_ U-05 Engineer builds a Wall. 25313_ U-05 Engineer lays Concrete. 25313_ U-05 Engineer builds a Wall. 25314_ U-05 Engineer lays Concrete. Map ----- +----------------------------------------------------+ | # """""" #?# #????????????? | | # """""" #?# #????????????? | | # """""" #?# """ #????????????? | | + #?# """ #????????????? | | # """""" #?# """ #????????????? | | # """""" #?# #??????????#?? | | !! # """""" #?#####+############# ### | | !! ##### """""" #????# #### | | !#???# #????# " + """ | | #???# #????# #### T" | | ##+######### |%= #????## ##??# """ | | ?# = #?????# #???# | | ?# == +?????# ##### !!! | | ?# == #?????# # !!! | | ####+####### = #?????# #= !! | | ! #?# ###### #??##?# %+= | | """ #?# # #% %#######^ ^ #*""""""""" | | = ""F"" #?# #"" " [%=* # | | "" "" ### #"" #[!![ !=[ # = | | + #G %#%*%=H%[ % ###+#####"### | | # ##""% + =||!! t = *[ *! !] | | ! # ##"" ####u!=! %[= [[ ! !] | | + ## #?!#H!% =![!! ! !! | | ################# #?##us[[ *%*!%* [ | | ????????????????# #?##gs[ =%![= | | ????????????????######??#@[= ###+######### | | ??????????????###########!!% # ] | | ??????????????# #= # """ """ | | ??????????????# !!! # # """ """ | | ??????????????#""" !! # + """ """ | | ??????????????#""" !! ! + # "" "" | | ??????????????#"S # # "" " | | ??????????????#""" # ######## | | ??????????????# "" # #??????# | | ??????????????# # #??????# !== | | ??????????????########### k######## =[* | | ????????????????????????# # # ""Y"" | | ????????????????????????# # # """"" | | ????????????????????????# # ! ############# | | ????????????????????????# # #???????????? | | ??????????????????????### # #???????????? | | ??????????????????????# # #???????????? | | ??????????????????????# # """" #???????????? | | ??????????????????????# + """" #???????????? | | ??????????????????????# # """" #???????????? | | ??????????????????????# # """" #???????????? | | ??????????????????????### # """" ????????????? | | ????????????????????????# # """" ????????????? | | ????????????????????????# # """"?????????????? | | ????????????????????????# # ??????????????? | +----------------------------------------------------+ Best States ------------- Heat Dissipation 75 Coolant Potential 65 Energy Generation 36 Energy Capacity 385 Matter Stores 300 Matter Capacity 300 Sight Range 16 Terrain Scan Range 20 Terrain Scan Density 10 Jamming Range 16 Armor Coverage 1600 Resistance: EM 90 Propulsion Shielding 66 Evasion (%) 40 Targeting Accuracy 8 Core Analysis 6 Recoil Reduction 4 Relay Coupler Types 2 Relay Coupler Value 41 Item Schematics ----------------- None Robot Schematics ------------------ None Fabricated ------------ Adv. Transmission Jammer | x2 | -6/Factory | Preloaded Repaired ---------- Heat Sink | 56% | -10/Materials Arm. Wheel | 29% | -9/Materials Imp. Assault Rifle | 99% | -8/Materials | Broken Exp. Heat Sink | 27% | -8/Materials Imp. Treads | 27% | -8/Materials Adv. Beam Rifle | 50% | -8/Materials Adv. Beam Rifle | 74% | -8/Materials Arm. Wheel | 47% | -8/Materials Imp. Light Armor Plating | 75% | -8/Materials Studied --------- Arm. Wheel | -9/Materials | Hacked Shotgun | -8/Materials | Hacked Rocket Launcher | -8/Materials | Hacked Shock Bomb Launcher | -8/Materials | Hacked Antimatter Reactor | -5/Factory | Hacked Alien Tech Used ----------------- None Achievements -------------- None Challenges ------------ None Game ------ Seed MassThiefFlakker Manual? 0 Play Time 02:19:54 Cumulative 1623.3 hours Start 2026.02.25 @ 14:55:01 End 2026.02.26 @ 14:17:32 Sessions 3 Manual Loads 0 Difficulty Rogue Special Mode None Game No. 1166 Rogue 1126 Adventurer 40 Explorer 0 Win Type - Total 210 Types 95/11/74/2/2/4/16/2/1/3 Lore% 97 Gallery% 95 Achievement% 84 Wizard Run 0 Options --------- Layout 0 ASCII 0 Keyboard 0 Movement Numpad Keybinds 0 Fullscreen 0 Font 20/Terminus Map View 76x50 Zoom Use 0% Tactical HUD 1 Map Filters NONE Filters NONE Steam 1 RUN: 843d6843-3ff7-4f3c-b480-8649179ed81b